bitfinex/quotes_BTCUSD_20250602
["timestamp","ask_amount","ask_price","bid_price","bid_amount"]
[1748831524641,0.001,105250.0,105240.0,1.0566037]
[1748831526248,0.001,105250.0,105240.0,1.1463237]
[1748831528291,0.001,105250.0,105240.0,1.47401761]
[1748831528504,0.001,105250.0,105240.0,1.1563237]
[1748831528720,0.001,105250.0,105240.0,0.7649637]
[1748831528936,0.001,105250.0,105240.0,0.82834979]
[1748831529146,0.001,105250.0,105240.0,0.82634979]
[1748831529410,0.001,105250.0,105240.0,1.22834979]
[1748831529610,0.41019226,105280.0,105270.0,0.21848471]
[1748831529819,0.41019226,105280.0,105270.0,0.31433901]
[1748831530657,0.4101929,105280.0,105270.0,0.30484026]
[1748831530860,0.40069451,105280.0,105270.0,0.32383785]
[1748831531068,0.40369451,105280.0,105270.0,0.32483785]
[1748831532053,0.39419577,105280.0,105270.0,0.32483785]
[1748831532276,0.40769406,105280.0,105270.0,0.32483785]
[1748831533490,0.41719245,105280.0,105270.0,0.32483785]
[1748831535308,0.41719245,105280.0,105270.0,0.30584026]
[1748831535448,0.41719245,105280.0,105270.0,0.3153391]
[1748831535678,0.41719245,105280.0,105270.0,0.32483785]
[1748831536597,0.60716205,105280.0,105270.0,0.30584026]
[1748831536813,0.60716205,105280.0,105270.0,0.32483803]
[1748831536814,0.61666053,105280.0,105270.0,0.32483803]
[1748831537043,0.42669093,105280.0,105270.0,0.32483803]
[1748831537265,0.42669093,105280.0,105270.0,0.33433678]
[1748831538517,0.40769406,105280.0,105270.0,0.33433678]
[1748831540092,0.41719245,105280.0,105270.0,0.33433678]
[1748831541722,0.40769406,105280.0,105270.0,0.33433678]
[1748831544133,0.41719245,105280.0,105270.0,0.33433678]
[1748831544533,0.40769406,105280.0,105270.0,0.33433678]
[1748831544945,0.39819577,105280.0,105270.0,0.33433678]
[1748831545361,0.007,105280.0,105270.0,0.33433678]
[1748831545570,0.01649766,105280.0,105270.0,0.33433678]
[1748831545992,0.0259955,105280.0,105270.0,0.33433678]
[1748831546185,0.0414955,105280.0,105270.0,0.33433678]
[1748831548060,0.06659352,105280.0,105270.0,0.33433678]
[1748831548462,0.07609163,105280.0,105270.0,0.33433678]
[1748831549060,0.06659352,105280.0,105270.0,0.33433678]
[1748831549889,0.06659343,105280.0,105270.0,0.33433678]
[1748831550742,0.07609163,105280.0,105270.0,0.33433678]
[1748831550946,0.06659343,105280.0,105270.0,0.33433678]
[1748831551153,0.07609154,105280.0,105270.0,0.33433678]
[1748831551566,0.06659343,105280.0,105270.0,0.33433678]
[1748831551992,0.07609154,105280.0,105270.0,0.33433678]
[1748831555052,0.0381,105280.0,105270.0,0.33433678]
[1748831555243,0.05709559,105280.0,105270.0,0.33433678]
[1748831555660,0.04149559,105280.0,105270.0,0.33433678]
[1748831558739,0.0509937,105280.0,105270.0,0.33433678]
[1748831558947,0.0669937,105280.0,105270.0,0.33433678]
[1748831559156,0.06699379,105280.0,105270.0,0.33433678]
[1748831559361,0.0669937,105280.0,105270.0,0.33433678]
[1748831559599,0.05749559,105280.0,105270.0,0.33433678]
[1748831559800,0.06699361,105280.0,105270.0,0.33433678]
[1748831561096,0.07649172,105280.0,105270.0,0.33433678]
[1748831563672,0.08599001,105280.0,105270.0,0.33433678]
[1748831563879,0.07649172,105280.0,105270.0,0.33433678]
[1748831564082,0.58746591,105280.0,105270.0,0.0968543]
[1748831564286,0.58746591,105280.0,105270.0,0.30584044]
[1748831564902,0.57796789,105280.0,105270.0,0.29634133]
[1748831565120,0.57796789,105280.0,105270.0,0.30584062]
[1748831565528,0.57796789,105280.0,105270.0,0.32483875]
[1748831565735,0.57796789,105280.0,105270.0,0.33433759]
[1748831565894,0.57796789,105280.0,105270.0,0.32483875]
[1748831568383,0.57796789,105280.0,105270.0,0.33433768]
[1748831569344,0.57796789,105280.0,105270.0,0.33433714]
[1748831569749,0.57796789,105280.0,105270.0,0.3248383]
[1748831570533,0.57796789,105280.0,105270.0,0.30584035]
[1748831570735,0.58301045,105280.0,105270.0,0.001]
[1748831573837,0.58301045,105280.0,105270.0,0.01049938]
[1748831574435,0.58301045,105280.0,105270.0,0.001]
[1748831574872,0.67249045,105280.0,105270.0,0.001]
[1748831575712,0.76500167,105280.0,105270.0,0.001]
[1748831575919,0.67249045,105280.0,105270.0,0.001]
[1748831577376,0.76834475,105280.0,105270.0,0.001]
[1748831577591,1.05974475,105280.0,105270.0,0.001]
[1748831578865,0.41434034,105260.0,105250.0,0.21852438]
[1748831579065,0.98522676,105260.0,105250.0,0.21852438]
[1748831579272,0.98522676,105260.0,105250.0,0.20902347]
[1748831580107,0.98622676,105260.0,105250.0,0.20902347]
[1748831580937,0.97672693,105260.0,105250.0,0.20902347]
[1748831581140,0.96722683,105260.0,105250.0,0.19952247]
[1748831581359,0.96822683,105260.0,105250.0,0.19952247]
[1748831582932,0.21852594,105250.0,105240.0,0.20909395]
[1748831583197,0.58052557,105250.0,105240.0,4.862e-05]
[1748831583714,0.59506642,105250.0,105240.0,4.862e-05]
[1748831584365,0.59506642,105250.0,105240.0,0.00104862]
[1748831584785,0.59606642,105250.0,105240.0,0.00304862]
[1748831586040,0.68857764,105250.0,105240.0,0.00304862]
[1748831586450,0.68857764,105250.0,105240.0,0.00204862]
[1748831586859,0.78443194,105250.0,105240.0,0.00204862]
[1748831587065,0.78443194,105250.0,105240.0,4.862e-05]
[1748831587066,0.78343194,105250.0,105240.0,4.862e-05]
[1748831587477,0.78443194,105250.0,105240.0,0.00104862]
[1748831587682,0.78443194,105250.0,105240.0,4.862e-05]
[1748831588032,0.78943194,105250.0,105240.0,4.862e-05]
[1748831588461,0.80814885,105250.0,105240.0,4.862e-05]
[1748831588666,0.80714885,105250.0,105240.0,4.862e-05]
[1748831589275,0.72063763,105250.0,105240.0,0.00104862]
[1748831590949,0.55860928,105210.0,105200.0,0.3757809]
[1748831591158,0.64812928,105210.0,105200.0,0.37582936]
[1748831591504,0.64812928,105210.0,105200.0,0.38533506]
[1748831591713,0.64812928,105210.0,105200.0,0.39419466]
[1748831591905,0.64812928,105210.0,105200.0,0.40370009]
[1748831592245,0.64812928,105210.0,105200.0,0.41255972]
[1748831592456,0.64812928,105210.0,105200.0,0.40370009]
[1748831592647,0.64812928,105210.0,105200.0,0.40470009]
[1748831593217,0.64812928,105210.0,105200.0,0.41355809]
[1748831593344,0.64812928,105210.0,105200.0,0.32845515]
[1748831593544,0.64812928,105210.0,105200.0,0.3468172]
[1748831593769,0.64912928,105210.0,105200.0,0.33996049]
[1748831594165,0.64912928,105210.0,105200.0,0.34881721]
[1748831594366,0.64912928,105210.0,105200.0,0.33996049]
[1748831594627,0.64912928,105210.0,105200.0,0.33045515]
[1748831594833,0.64912928,105210.0,105200.0,0.33930836]
[1748831595045,0.64912928,105210.0,105200.0,0.33045515]
[1748831595489,0.64912928,105210.0,105200.0,0.3488137]
[1748831595697,0.64912928,105210.0,105200.0,0.33996049]
[1748831595910,0.64912928,105210.0,105200.0,0.33045515]
[1748831596124,0.64912928,105210.0,105200.0,0.33996049]
[1748831596538,0.64912928,105210.0,105200.0,0.33930281]
[1748831596742,0.64912928,105210.0,105200.0,0.33045515]
[1748831597161,0.65863407,105210.0,105200.0,0.3399604]
[1748831597360,0.46853808,105210.0,105200.0,0.36536547]
[1748831598231,0.46853808,105210.0,105200.0,0.47741977]
[1748831598232,0.341,105210.0,105200.0,0.47741977]
[1748831598438,0.001,105210.0,105200.0,0.47741977]
[1748831598718,0.01050398,105210.0,105200.0,0.47741977]
[1748831599147,0.01050398,105210.0,105200.0,0.48626082]
[1748831599356,0.02000805,105210.0,105200.0,0.48626082]
[1748831599778,0.02000805,105210.0,105200.0,0.47741977]
[1748831599984,0.01050398,105210.0,105200.0,0.48626082]
[1748831600195,0.01050398,105210.0,105200.0,0.47741977]
[1748831600410,0.02000805,105210.0,105200.0,0.47741977]
[1748831600761,0.02000805,105210.0,105200.0,0.486253]
[1748831601503,0.02000805,105210.0,105200.0,0.47741977]
[1748831601703,0.02000805,105210.0,105200.0,0.486253]
[1748831601911,0.001,105210.0,105200.0,0.48625456]
[1748831602109,0.001,105210.0,105200.0,0.4862544]
[1748831602310,0.001,105210.0,105200.0,0.47741977]
[1748831603499,0.02000823,105210.0,105200.0,0.47741977]
[1748831604111,0.02000823,105210.0,105200.0,0.48625454]
[1748831604344,0.02000823,105210.0,105200.0,0.47741977]
[1748831604555,0.03901754,105210.0,105200.0,0.4358147]
[1748831604762,0.03901754,105210.0,105200.0,0.44531977]
[1748831604963,0.03901754,105210.0,105200.0,0.47183562]
[1748831605419,0.03901736,105210.0,105200.0,0.48068249]
[1748831605617,0.03901736,105210.0,105200.0,0.47183562]
[1748831605820,0.03901736,105210.0,105200.0,0.48068249]
[1748831606224,0.03901736,105210.0,105200.0,0.48068242]
[1748831606874,0.03901736,105210.0,105200.0,0.47183562]
[1748831607092,0.03901736,105210.0,105200.0,0.48073075]
[1748831607620,0.03901736,105210.0,105200.0,0.4807308]
[1748831608737,0.03901736,105210.0,105200.0,0.48073165]
[1748831608938,0.02000823,105210.0,105200.0,0.48073165]
[1748831609139,0.02951275,105210.0,105200.0,0.48073166]
[1748831609600,0.02951275,105210.0,105200.0,0.47183562]
[1748831609803,0.02951275,105210.0,105200.0,0.48073151]
[1748831610103,0.02951275,105210.0,105200.0,0.4896274]
[1748831610240,0.03901736,105210.0,105200.0,0.49852324]
[1748831610596,0.03901736,105210.0,105200.0,0.49852323]
[1748831610812,0.03901736,105210.0,105200.0,0.49852436]
[1748831611092,0.03901736,105210.0,105200.0,0.4896274]
[1748831611342,0.03901736,105210.0,105200.0,0.49852438]
[1748831611547,0.03901736,105210.0,105200.0,0.4896274]
[1748831611756,0.02000823,105210.0,105200.0,0.4896274]
[1748831611958,0.02951275,105210.0,105200.0,0.4896274]
[1748831612109,0.02951275,105210.0,105200.0,0.49852437]
[1748831612316,0.02951239,105210.0,105200.0,0.49852437]
[1748831612518,0.0295123,105210.0,105200.0,0.52362134]
[1748831612777,0.0295123,105210.0,105200.0,0.51472654]
[1748831612911,0.03901673,105210.0,105200.0,0.50582957]
[1748831613119,0.001,105210.0,105200.0,0.83892348]
[1748831613341,0.001,105210.0,105200.0,1.14030112]
[1748831613557,0.001,105210.0,105200.0,1.15809586]
[1748831613755,0.001,105210.0,105200.0,1.15809582]
[1748831613912,0.001,105210.0,105200.0,1.14919818]
[1748831614478,0.001,105210.0,105200.0,1.14919737]
[1748831614686,0.001,105210.0,105200.0,1.14030079]
[1748831615087,0.001,105210.0,105200.0,1.1491974]
[1748831615716,0.001,105210.0,105200.0,1.1580939]
[1748831615849,0.001,105210.0,105200.0,1.1669905]
[1748831616274,0.001,105210.0,105200.0,1.16698653]
[1748831616449,0.001,105210.0,105200.0,1.17587916]
[1748831616629,0.001,105210.0,105200.0,1.16698653]
[1748831617527,0.001,105210.0,105200.0,1.17588042]
[1748831618182,0.001,105210.0,105200.0,1.17587693]
[1748831618602,0.001,105210.0,105200.0,1.14030079]
[1748831618804,0.001,105210.0,105200.0,1.14919119]
[1748831620220,0.001,105210.0,105200.0,1.18660899]
[1748831620411,0.001,105210.0,105200.0,1.19549789]
[1748831620783,0.001,105210.0,105200.0,1.59549789]
[1748831620966,0.001,105210.0,105200.0,1.57771869]
[1748831621178,0.001,105210.0,105200.0,1.57771701]
[1748831621383,0.001,105210.0,105200.0,1.56882979]
[1748831623151,0.001,105210.0,105200.0,1.25113588]
[1748831623387,0.001,105210.0,105200.0,1.56882979]
[1748831624904,0.001,105210.0,105200.0,1.65902979]
[1748831629117,0.001,105210.0,105200.0,1.36654979]
[1748831629330,0.001,105210.0,105200.0,1.65902979]
[1748831633792,0.001,105210.0,105200.0,1.27634979]
[1748831634010,0.001,105210.0,105200.0,1.34097588]
[1748831634179,0.001,105210.0,105200.0,1.65866979]
[1748831640843,0.001,105210.0,105200.0,1.66866979]
[1748831641046,0.001,105210.0,105200.0,1.9863637]
[1748831641260,0.001,105210.0,105200.0,2.00090455]
[1748831641477,0.34,105240.0,105230.0,0.21856775]
[1748831641679,0.34,105240.0,105230.0,0.63211596]
[1748831642958,0.342,105240.0,105230.0,0.63211596]
[1748831643113,0.002,105240.0,105230.0,0.63211596]
[1748831644064,0.004,105240.0,105230.0,0.63311596]
[1748831645612,0.004,105240.0,105230.0,0.64931596]
[1748831645829,0.004,105240.0,105230.0,0.66461596]
[1748831646035,0.004,105240.0,105230.0,0.67401028]
[1748831646452,0.004,105240.0,105230.0,0.99170419]
[1748831646676,0.004,105240.0,105230.0,1.07401028]
[1748831646871,0.004,105240.0,105230.0,1.39170419]
[1748831647066,0.004,105240.0,105230.0,1.07401028]
[1748831647272,0.002,105240.0,105230.0,1.07301028]
[1748831647679,0.003,105240.0,105230.0,1.07401028]
[1748831647882,0.002,105240.0,105230.0,1.07301028]
[1748831648090,0.3916975,105270.0,105260.0,0.00949965]
[1748831648316,0.3916975,105270.0,105260.0,0.31435994]
[1748831648317,0.38749501,105270.0,105260.0,0.31435994]
[1748831648516,0.38749483,105270.0,105260.0,0.32385959]
[1748831648730,0.42019546,105270.0,105260.0,0.32385959]
[1748831648936,0.420196,105270.0,105260.0,0.32385959]
[1748831649112,0.420196,105270.0,105260.0,0.31435994]
[1748831649358,0.59118552,105270.0,105260.0,0.29540865]
[1748831649508,0.59418552,105270.0,105260.0,0.30490866]
[1748831649932,0.59441411,105270.0,105260.0,0.30490866]
[1748831650340,0.60245567,105270.0,105260.0,0.01054874]
[1748831650547,0.59295629,105270.0,105260.0,0.01054874]
[1748831651648,0.59295629,105270.0,105260.0,0.02004893]
[1748831652662,0.59295629,105270.0,105260.0,0.00104846]
[1748831653057,0.56025629,105270.0,105260.0,0.01054874]
[1748831653711,0.56025629,105270.0,105260.0,0.02004893]
[1748831653849,0.56025629,105270.0,105260.0,0.02954903]
[1748831654050,0.5505285,105270.0,105260.0,0.21955473]
[1748831657255,0.56020949,105270.0,105260.0,0.21955473]
[1748831659513,0.56020949,105270.0,105260.0,0.22905474]
[1748831659889,0.5505285,105270.0,105260.0,0.23855466]
[1748831661428,0.5601923,105270.0,105260.0,0.23855466]
[1748831664190,0.56969159,105270.0,105260.0,0.23855466]
[1748831664507,0.56969159,105270.0,105260.0,0.22905474]
[1748831665362,0.56969159,105270.0,105260.0,0.21955473]
[1748831665766,0.56969159,105270.0,105260.0,0.22905474]
[1748831665977,0.56969159,105270.0,105260.0,0.23855466]
[1748831668187,0.56969159,105270.0,105260.0,0.22905474]
[1748831669120,0.56969159,105270.0,105260.0,0.21955473]
[1748831669298,0.56969159,105270.0,105260.0,0.00104846]
[1748831669616,0.56969159,105270.0,105260.0,0.20055435]
[1748831670190,0.56969159,105270.0,105260.0,0.00104846]
[1748831670395,0.56969159,105270.0,105260.0,0.20055435]
[1748831670548,0.56969159,105270.0,105260.0,0.21005445]
[1748831670965,0.56969159,105270.0,105260.0,0.21955446]
[1748831672522,0.38416077,105270.0,105260.0,0.33440833]
[1748831672720,0.5836478,105270.0,105260.0,0.33440851]
[1748831672924,0.39366015,105270.0,105260.0,0.33440806]
[1748831673343,0.39366015,105270.0,105260.0,0.33440761]
[1748831674993,0.38416077,105270.0,105260.0,0.33440761]
[1748831675559,0.39366006,105270.0,105260.0,0.33440761]
[1748831675758,0.39366006,105270.0,105260.0,0.32490796]
[1748831676182,0.40315944,105270.0,105260.0,0.32490796]
[1748831677410,0.39366006,105270.0,105260.0,0.33440761]
[1748831677962,0.35549875,105270.0,105260.0,0.33440761]
[1748831678273,0.36499768,105270.0,105260.0,0.33440761]
[1748831679653,0.3744967,105270.0,105260.0,0.33440761]
[1748831680029,0.3839959,105270.0,105260.0,0.33440761]
[1748831680240,0.38399581,105270.0,105260.0,0.33440761]
[1748831680892,0.39349501,105270.0,105260.0,0.33440761]
[1748831681551,0.3744967,105270.0,105260.0,0.33440761]
[1748831681749,0.3839959,105270.0,105260.0,0.33440761]
[1748831681970,0.3744967,105270.0,105260.0,0.33440761]
[1748831682178,0.3839959,105270.0,105260.0,0.33440761]
[1748831684709,0.39349528,105270.0,105260.0,0.32490796]
[1748831684859,0.39349528,105270.0,105260.0,0.33440761]
[1748831686191,0.3839959,105270.0,105260.0,0.33440761]
[1748831686355,0.4143959,105270.0,105260.0,0.33440761]
[1748831687770,0.61388284,105270.0,105260.0,0.30590875]
[1748831688015,0.60438454,105270.0,105260.0,0.31540858]
[1748831690212,0.60942637,105270.0,105260.0,0.00104846]
[1748831690416,0.59992717,105270.0,105260.0,0.01054874]
[1748831690625,0.59042788,105270.0,105260.0,0.00104846]
[1748831695484,0.68018788,105270.0,105260.0,0.00104846]
[1748831703670,0.64667598,105270.0,105260.0,0.00104846]
[1748831703999,1.22375028,105270.0,105260.0,0.00104846]
[1748831704192,1.28933726,105270.0,105260.0,0.00104846]
[1748831704394,1.79193726,105270.0,105260.0,0.00104846]
[1748831704597,1.84193726,105270.0,105260.0,0.00104846]
[1748831704825,0.37520553,105230.0,105220.0,0.20908508]
[1748831705037,0.58126539,105230.0,105220.0,0.20908508]
[1748831706224,0.58140348,105230.0,105220.0,0.21108508]
[1748831706955,0.56520348,105230.0,105220.0,0.21108508]
[1748831707937,0.56520348,105230.0,105220.0,0.20158164]
[1748831708138,0.56520348,105230.0,105220.0,0.21108526]
[1748831708300,0.58140348,105230.0,105220.0,0.19207793]
[1748831708509,0.67895292,105230.0,105220.0,0.002]
[1748831708794,0.67045002,105230.0,105220.0,0.002]
[1748831708995,0.5779388,105230.0,105220.0,0.002]
[1748831709415,0.35900859,105210.0,105200.0,0.39014116]
[1748831709624,0.35900859,105210.0,105200.0,0.49486138]
[1748831709803,0.35900859,105210.0,105200.0,0.49486139]
[1748831710045,0.35900859,105210.0,105200.0,0.50372732]
[1748831710250,0.3685132,105210.0,105200.0,0.49486139]
[1748831710796,0.35900859,105210.0,105200.0,0.49486139]
[1748831711002,0.34,105210.0,105200.0,0.50372675]
[1748831711244,0.3590085,105210.0,105200.0,0.51076139]
[1748831711451,0.36000859,105210.0,105200.0,0.51176139]
[1748831712002,0.35050416,105210.0,105200.0,0.52062677]
[1748831712122,0.36000859,105210.0,105200.0,0.52062679]
[1748831712347,0.3600085,105210.0,105200.0,0.52062679]
[1748831712561,0.35050416,105210.0,105200.0,0.52062134]
[1748831712835,0.36000859,105210.0,105200.0,0.52062137]
[1748831713113,0.3600085,105210.0,105200.0,0.52062714]
[1748831713872,0.35050416,105210.0,105200.0,0.52948371]
[1748831714112,0.3600085,105210.0,105200.0,0.52948342]
[1748831714468,0.341,105210.0,105200.0,0.54488342]
[1748831714677,0.001,105210.0,105200.0,0.53602714]
[1748831715993,0.001,105210.0,105200.0,0.54488054]
[1748831716395,0.001,105210.0,105200.0,0.5448806]
[1748831716564,0.001,105210.0,105200.0,0.56258092]
[1748831717738,0.001,105210.0,105200.0,0.57143452]
[1748831717962,0.001,105210.0,105200.0,0.56258092]
[1748831718163,0.001,105210.0,105200.0,0.57143452]
[1748831718361,0.001,105210.0,105200.0,0.58028812]
[1748831718559,0.001,105210.0,105200.0,0.57143452]
[1748831718840,0.01050407,105210.0,105200.0,0.85680856]
[1748831719012,0.02951284,105210.0,105200.0,0.84090874]
[1748831719251,0.02000832,105210.0,105200.0,0.84090874]
[1748831719433,0.01050407,105210.0,105200.0,0.84976294]
[1748831719637,0.001,105210.0,105200.0,0.84976294]
[1748831719795,0.001,105210.0,105200.0,0.86556294]
[1748831720012,0.001,105210.0,105200.0,0.89212494]
[1748831720631,0.001,105210.0,105200.0,0.90983462]
[1748831720832,0.001,105210.0,105200.0,0.90097978]
[1748831721270,0.001,105210.0,105200.0,0.90983462]
[1748831721918,0.001,105210.0,105200.0,0.90979462]
[1748831722277,0.001,105210.0,105200.0,0.90979473]
[1748831722832,0.001,105210.0,105200.0,0.90094053]
[1748831723034,0.001,105210.0,105200.0,0.90094111]
[1748831723432,0.001,105210.0,105200.0,0.90094259]
[1748831724492,0.001,105210.0,105200.0,0.88514259]
[1748831724832,0.01050416,105210.0,105200.0,0.88514259]
[1748831725245,0.01050416,105210.0,105200.0,0.88514404]
[1748831725488,0.001,105210.0,105200.0,0.88514404]
[1748831725636,0.01050407,105210.0,105200.0,0.88514702]
[1748831726041,0.01050407,105210.0,105200.0,0.87628558]
[1748831726282,0.01050407,105210.0,105200.0,0.88514702]
[1748831726479,0.01050407,105210.0,105200.0,0.87628558]
[1748831726682,0.01050407,105210.0,105200.0,0.88514702]
[1748831726953,0.001,105210.0,105200.0,0.89400846]
[1748831727278,0.01050407,105210.0,105200.0,0.90970846]
[1748831727465,0.01050407,105210.0,105200.0,0.90971173]
[1748831727627,0.01050407,105210.0,105200.0,0.9097178]
[1748831728310,0.05210832,105210.0,105200.0,0.87532186]
[1748831728543,0.05210832,105210.0,105200.0,0.90592186]
[1748831728544,0.001,105210.0,105200.0,0.90592186]
[1748831728789,0.001,105210.0,105200.0,1.32705661]
[1748831729225,0.001,105210.0,105200.0,1.72705661]
[1748831730344,0.001,105210.0,105200.0,1.32705661]
[1748831730773,0.001,105210.0,105200.0,1.72705661]
[1748831732126,0.001,105210.0,105200.0,1.72220673]
[1748831732352,0.001,105210.0,105200.0,2.09441696]
[1748831733041,0.001,105210.0,105200.0,2.05894155]
[1748831733261,0.001,105210.0,105200.0,1.74124764]
[1748831733485,0.001,105210.0,105200.0,1.74024764]
[1748831733759,0.00013809,105230.0,105220.0,0.25078852]
[1748831733976,0.00013809,105230.0,105220.0,1.05456755]
[1748831734415,0.00013809,105230.0,105220.0,1.48309255]
[1748831735090,0.00213809,105230.0,105220.0,1.16639864]
[1748831735520,0.00213809,105230.0,105220.0,1.16153497]
[1748831735951,0.00213809,105230.0,105220.0,1.47922888]
[1748831737044,0.00213809,105230.0,105220.0,1.47922672]
[1748831738199,0.00213809,105230.0,105220.0,1.48409039]
[1748831740415,0.00213809,105230.0,105220.0,1.49374775]
[1748831742945,0.00113809,105230.0,105220.0,1.49374775]
[1748831743172,0.00113809,105230.0,105220.0,1.49474775]
[1748831743392,0.00013809,105230.0,105220.0,1.49374775]
[1748831743636,0.00013809,105230.0,105220.0,1.49474775]
[1748831748218,0.00013809,105230.0,105220.0,0.79533384]
[1748831748436,0.00013809,105230.0,105220.0,0.73013281]
[1748831748437,0.03173809,105230.0,105220.0,0.73013281]
[1748831748675,0.03173809,105230.0,105220.0,0.34861281]
[1748831748877,0.03173809,105230.0,105220.0,0.34496782]
[1748831750913,0.04124036,105230.0,105220.0,0.34496782]
[1748831751641,0.04124027,105230.0,105220.0,0.34496782]
[1748831752201,0.06024508,105230.0,105220.0,0.31644282]
[1748831752700,0.40024508,105230.0,105220.0,0.31644282]
[1748831753095,0.40024499,105230.0,105220.0,0.31644282]
[1748831753834,0.40974762,105230.0,105220.0,0.31644282]
[1748831755467,0.40024508,105230.0,105220.0,0.31644282]
[1748831756854,0.39074254,105230.0,105220.0,0.31644282]
[1748831757075,0.40024499,105230.0,105220.0,0.31644282]
[1748831758494,0.39074254,105230.0,105220.0,0.31644282]
[1748831759166,0.37173809,105230.0,105220.0,0.31644282]
[1748831759368,0.34013809,105230.0,105220.0,0.66523673]
[1748831759573,0.00013809,105230.0,105220.0,0.6688866]
[1748831759842,0.00013809,105230.0,105220.0,0.70227427]
[1748831760100,0.00013809,105230.0,105220.0,0.6986244]
[1748831761213,0.00013809,105230.0,105220.0,1.0986244]
[1748831765549,0.00013809,105230.0,105220.0,1.12116026]
[1748831767830,0.00013809,105230.0,105220.0,1.12016026]
[1748831768408,0.00113809,105230.0,105220.0,1.12216026]
[1748831768733,0.00113809,105230.0,105220.0,1.12116026]
[1748831768895,0.00113809,105230.0,105220.0,1.12316026]
[1748831769523,0.00113809,105230.0,105220.0,1.41576026]
[1748831775640,0.00113809,105230.0,105220.0,1.38836073]
[1748831776624,0.00113809,105230.0,105220.0,1.67980073]
[1748831779839,0.00113809,105230.0,105220.0,1.36210682]
[1748831780038,0.00113809,105230.0,105220.0,1.67980073]
[1748831784292,0.00113809,105230.0,105220.0,1.67976073]
[1748831785281,0.00113809,105230.0,105220.0,1.46196073]
[1748831785514,0.00113809,105230.0,105220.0,1.75336073]
[1748831785724,0.00113809,105230.0,105220.0,1.75763913]
[1748831787118,0.00113809,105230.0,105220.0,1.46503913]
[1748831788345,0.00113809,105230.0,105220.0,1.44993913]
[1748831794068,0.00113809,105230.0,105220.0,1.46633913]
[1748831798247,0.00113809,105230.0,105220.0,1.08533913]
[1748831798447,0.00113809,105230.0,105220.0,1.46633913]
[1748831801410,0.00113809,105230.0,105220.0,1.48233913]
[1748831802281,0.00113809,105230.0,105220.0,1.46633913]
[1748831805766,0.00113809,105230.0,105220.0,1.44993913]
[1748831808214,0.01613809,105230.0,105220.0,1.06893913]
[1748831808391,0.03233809,105230.0,105220.0,0.75124522]
[1748831808585,0.03233809,105230.0,105220.0,1.13224522]
[1748831808788,0.03233809,105230.0,105220.0,0.84084522]
[1748831809003,0.03233809,105230.0,105220.0,1.13224522]
[1748831809352,0.03233809,105230.0,105220.0,0.73224522]
[1748831809730,0.03233809,105230.0,105220.0,0.84084522]
[1748831809935,0.03233809,105230.0,105220.0,0.75124522]
[1748831810183,0.03233809,105230.0,105220.0,0.84084522]
[1748831810384,0.03233809,105230.0,105220.0,0.8457167]
[1748831811389,0.03233809,105230.0,105220.0,0.4457167]
[1748831814119,0.03233809,105230.0,105220.0,0.76341061]
[1748831817677,0.03233809,105230.0,105220.0,0.3561167]
[1748831817881,0.03233809,105230.0,105220.0,0.7371167]
[1748831818697,0.03233809,105230.0,105220.0,0.3275927]
[1748831819215,0.03233809,105230.0,105220.0,0.33124293]
[1748831820861,0.03233809,105230.0,105220.0,0.3275927]
[1748831821074,0.03233809,105230.0,105220.0,0.33124284]
[1748831824375,0.03233809,105230.0,105220.0,0.32637058]
[1748831824525,0.03233809,105230.0,105220.0,0.64406449]
[1748831824976,0.03233809,105230.0,105220.0,0.64893597]
[1748831825627,0.03233809,105230.0,105220.0,0.33124206]
[1748831825844,0.03233809,105230.0,105220.0,0.64893597]
[1748831826078,0.00113809,105230.0,105220.0,0.64528661]
[1748831826340,0.00113809,105230.0,105220.0,0.67708661]
[1748831826761,0.00113809,105230.0,105220.0,1.07708661]
[1748831826975,0.00113809,105230.0,105220.0,1.07221513]
[1748831828267,0.00113809,105230.0,105220.0,1.05561513]
[1748831829235,0.00113809,105230.0,105220.0,1.08413613]
[1748831830031,0.00113809,105230.0,105220.0,1.10073613]
[1748831835632,0.00113809,105230.0,105220.0,1.12527698]
[1748831839801,0.00113809,105230.0,105220.0,1.10073613]
[1748831840220,0.00113809,105230.0,105220.0,1.48165613]
[1748831842541,1.909e-05,105230.0,105220.0,1.48165613]
[1748831851601,1.909e-05,105230.0,105220.0,1.48161613]
[1748831851819,1.909e-05,105230.0,105220.0,1.46501613]
[1748831852389,1.909e-05,105230.0,105220.0,1.06893613]
[1748831852635,1.909e-05,105230.0,105220.0,1.44977613]
[1748831854054,1.909e-05,105230.0,105220.0,1.46497613]
[1748831858613,1.909e-05,105230.0,105220.0,1.48117613]
[1748831861216,1.909e-05,105230.0,105220.0,1.79876936]
[1748831861775,1.909e-05,105230.0,105220.0,1.78256936]
[1748831870665,1.909e-05,105230.0,105220.0,1.76736936]
[1748831871568,1.909e-05,105230.0,105220.0,1.76732936]
[1748831881972,1.909e-05,105230.0,105220.0,2.05992936]
[1748831886262,0.03241909,105230.0,105220.0,2.05988936]
[1748831887815,0.03241909,105230.0,105220.0,1.76728936]
[1748831888262,0.03241909,105230.0,105220.0,0.35124222]
[1748831888658,0.03241909,105230.0,105220.0,0.32272122]
[1748831889819,0.03241909,105230.0,105220.0,0.64036479]
[1748831890037,0.03241909,105230.0,105220.0,0.95800836]
[1748831890038,1.909e-05,105230.0,105220.0,0.95800836]
[1748831890235,1.909e-05,105230.0,105220.0,1.05779268]
[1748831890401,1.909e-05,105230.0,105220.0,1.45779268]
[1748831891671,1.909e-05,105230.0,105220.0,1.47329268]
[1748831891978,1.909e-05,105230.0,105220.0,1.49783353]
[1748831892173,1.909e-05,105230.0,105220.0,1.8154771]
[1748831892377,1.909e-05,105230.0,105220.0,1.47069752]
[1748831893344,1.909e-05,105230.0,105220.0,1.15300949]
[1748831896731,1.909e-05,105230.0,105220.0,1.44560949]
[1748831897777,1.909e-05,105230.0,105220.0,1.53512949]
[1748831902204,1.909e-05,105230.0,105220.0,1.51962949]
[1748831902340,1.909e-05,105230.0,105220.0,1.50322949]
[1748831902537,1.909e-05,105230.0,105220.0,1.79442949]
[1748831902741,1.909e-05,105230.0,105220.0,1.81012949]
[1748831907933,1.909e-05,105230.0,105220.0,1.46480107]
[1748831908136,1.909e-05,105230.0,105220.0,1.78240018]
[1748831909235,0.03131909,105230.0,105220.0,1.45095933]
[1748831909451,0.03131909,105230.0,105220.0,1.65263933]
[1748831909683,0.03131909,105230.0,105220.0,1.13336022]
[1748831909911,0.03131909,105230.0,105220.0,1.74215933]
[1748831913328,0.03131909,105230.0,105220.0,1.74435933]
[1748831913857,0.03131909,105230.0,105220.0,1.74431933]
[1748831914459,0.03131909,105230.0,105220.0,1.45171933]
[1748831915289,0.03131909,105230.0,105220.0,1.06896206]
[1748831915556,0.03131909,105230.0,105220.0,1.45300206]
[1748831916115,0.03131909,105230.0,105220.0,0.84200022]
[1748831916294,0.03131909,105230.0,105220.0,1.45296206]
[1748831917246,0.03131909,105230.0,105220.0,1.7706839]